[Event "Titled Tuesday Blitz March 14 Early 2023"]
[White "Jeet, Jain"]
[Black "Hambleton, Aman"]
[WhiteFideId "5073022"]
[BlackFideId "2606577"]
[WhiteElo "2067"]
[BlackElo "2511"]
[Result "0-1"]
[Round "06"]
[TimeControl "180+2"]
[Date "2023.03.14"]
[WhiteClock "0:00:09"]
[BlackClock "0:00:06"]

1. Nf3 {[%clk 0:03:00]}  d5 {[%clk 0:02:51]} 2. b3 {[%clk 0:03:00]}  c6 {[%clk 0:02:40]} 3. Bb2 {[%clk 0:03:01]}  Bf5 {[%clk 0:02:39]} 4. e3 {[%clk 0:03:00]}  e6 {[%clk 0:02:40]} 5. d4 {[%clk 0:02:57]}  Nf6 {[%clk 0:02:40]} 6. Bd3 {[%clk 0:02:56]}  Bd6 {[%clk 0:02:40]} 7. O-O {[%clk 0:02:54]}  Nbd7 {[%clk 0:02:41]} 8. c4 {[%clk 0:02:52]}  Qb8 {[%clk 0:02:41]} 9. Nc3 {[%clk 0:02:50]}  O-O {[%clk 0:02:41]} 10. h3 {[%clk 0:02:47]}  Ne4 {[%clk 0:02:40]} 11. Bxe4 {[%clk 0:02:46]}  dxe4 {[%clk 0:02:39]} 12. Nd2 {[%clk 0:02:45]}  Nf6 {[%clk 0:02:40]} 13. Qc2 {[%clk 0:02:42]}  Bb4 {[%clk 0:02:34]} 14. a3 {[%clk 0:02:41]}  Bxc3 {[%clk 0:02:34]} 15. Bxc3 {[%clk 0:02:41]}  h6 {[%clk 0:02:33]} 16. b4 {[%clk 0:02:38]}  Re8 {[%clk 0:02:26]} 17. a4 {[%clk 0:02:37]}  Qd6 {[%clk 0:02:22]} 18. Qb3 {[%clk 0:02:36]}  Nd7 {[%clk 0:01:40]} 19. Qc2 {[%clk 0:02:28]}  e5 {[%clk 0:01:33]} 20. c5 {[%clk 0:02:21]}  Qg6 {[%clk 0:01:32]} 21. Kh2 {[%clk 0:02:18]}  exd4 {[%clk 0:00:53]} 22. Bxd4 {[%clk 0:02:18]}  Ne5 {[%clk 0:00:53]} 23. Bxe5 {[%clk 0:02:16]}  Rxe5 {[%clk 0:00:54]} 24. Nc4 {[%clk 0:02:16]}  Rd5 {[%clk 0:00:51]} 25. Nd6 {[%clk 0:02:14]}  b6 {[%clk 0:00:37]} 26. Rfd1 {[%clk 0:02:13]}  Be6 {[%clk 0:00:15]} 27. Qxe4 {[%clk 0:02:01]}  Rxd6 {[%clk 0:00:03]} 28. Qxg6 {[%clk 0:01:58]}  Rxd1 {[%clk 0:00:04]} 29. Qxe6 {[%clk 0:01:49]}  Rxa1 {[%clk 0:00:04]} 30. Qxc6 {[%clk 0:01:49]}  Rf8 {[%clk 0:00:04]} 31. cxb6 {[%clk 0:01:36]}  axb6 {[%clk 0:00:05]} 32. e4 {[%clk 0:01:36]}  Ra2 {[%clk 0:00:03]} 33. f4 {[%clk 0:01:36]}  Ra3 {[%clk 0:00:03]} 34. e5 {[%clk 0:01:35]}  Rb8 {[%clk 0:00:02]} 35. f5 {[%clk 0:01:34]}  Kh8 {[%clk 0:00:02]} 36. Qc7 {[%clk 0:01:30]}  Rf8 {[%clk 0:00:01]} 37. f6 {[%clk 0:01:24]}  gxf6 {[%clk 0:00:02]} 38. exf6 {[%clk 0:01:25]}  Rg8 {[%clk 0:00:02]} 39. Qf4 {[%clk 0:01:21]}  Rg6 {[%clk 0:00:02]} 40. h4 {[%clk 0:01:17]}  Ra2 {[%clk 0:00:02]} 41. Qf3 {[%clk 0:01:12]}  Rxa4 {[%clk 0:00:01]} 42. h5 {[%clk 0:01:12]}  Rg5 {[%clk 0:00:02]} 43. Qb3 {[%clk 0:01:08]}  Rxh5+ {[%clk 0:00:02]} 44. Kg3 {[%clk 0:01:07]}  Rg5+ {[%clk 0:00:01]} 45. Kh4 {[%clk 0:01:04]}  Ra7 {[%clk 0:00:01]} 46. Qe3 {[%clk 0:01:00]}  Ra8 {[%clk 0:00:01]} 47. Qe7 {[%clk 0:00:58]}  Kg8 {[%clk 0:00:01]} 48. g4 {[%clk 0:00:54]}  Rf8 {[%clk 0:00:01]} 49. Qe3 {[%clk 0:00:53]}  b5 {[%clk 0:00:02]} 50. Qe4 {[%clk 0:00:53]}  Rd8 {[%clk 0:00:02]} 51. Qe7 {[%clk 0:00:52]}  Rf8 {[%clk 0:00:02]} 52. Qd7 {[%clk 0:00:51]}  Rg6 {[%clk 0:00:03]} 53. Qd6 {[%clk 0:00:51]}  Re8 {[%clk 0:00:04]} 54. Qc6 {[%clk 0:00:49]}  Re6 {[%clk 0:00:03]} 55. Qxb5 {[%clk 0:00:47]}  Rexf6 {[%clk 0:00:04]} 56. Qb8+ {[%clk 0:00:46]}  Kg7 {[%clk 0:00:04]} 57. b5 {[%clk 0:00:46]}  Rb6 {[%clk 0:00:03]} 58. Qe5+ {[%clk 0:00:46]}  Kg8 {[%clk 0:00:04]} 59. Qe8+ {[%clk 0:00:46]}  Kg7 {[%clk 0:00:04]} 60. Qe5+ {[%clk 0:00:45]}  Kh7 {[%clk 0:00:04]} 61. Qe8 {[%clk 0:00:41]}  Rbf6 {[%clk 0:00:04]} 62. Kh3 {[%clk 0:00:36]}  Rf3+ {[%clk 0:00:04]} 63. Kh4 {[%clk 0:00:35]}  Rf4 {[%clk 0:00:05]} 64. Kh3 {[%clk 0:00:31]}  Rf3+ {[%clk 0:00:05]} 65. Kh4 {[%clk 0:00:29]}  Rf1 {[%clk 0:00:05]} 66. Qe4 {[%clk 0:00:25]}  Kg7 {[%clk 0:00:04]} 67. Qd4+ {[%clk 0:00:22]}  Rgf6 {[%clk 0:00:04]} 68. b6 {[%clk 0:00:21]}  Rb1 {[%clk 0:00:04]} 69. b7 {[%clk 0:00:16]}  Rxb7 {[%clk 0:00:04]} 70. Qe5 {[%clk 0:00:17]}  Rb6 {[%clk 0:00:04]} 71. Qd4 {[%clk 0:00:17]}  Rd6 {[%clk 0:00:04]} 72. Qe5 {[%clk 0:00:18]}  Re6 {[%clk 0:00:04]} 73. Qb2 {[%clk 0:00:18]}  Re4 {[%clk 0:00:04]} 74. Qc3 {[%clk 0:00:17]}  Rf4 {[%clk 0:00:03]} 75. Qb2 {[%clk 0:00:17]}  Rf2 {[%clk 0:00:03]} 76. Qc3 {[%clk 0:00:16]}  Rf3 {[%clk 0:00:03]} 77. Qd4 {[%clk 0:00:16]}  Kg8 {[%clk 0:00:03]} 78. Qd8+ {[%clk 0:00:16]}  Kh7 {[%clk 0:00:03]} 79. Qd4 {[%clk 0:00:15]}  R3f4 {[%clk 0:00:03]} 80. Qe5 {[%clk 0:00:15]}  Rf1 {[%clk 0:00:03]} 81. Qe4+ {[%clk 0:00:15]}  Rg6 {[%clk 0:00:03]} 82. Qd4 {[%clk 0:00:13]}  Rf3 {[%clk 0:00:03]} 83. Qe4 {[%clk 0:00:12]}  Rf2 {[%clk 0:00:02]} 84. Qd4 {[%clk 0:00:13]}  Rff6 {[%clk 0:00:03]} 85. Qe4 {[%clk 0:00:13]}  Rd6 {[%clk 0:00:03]} 86. Kh5 {[%clk 0:00:13]}  Kg7 {[%clk 0:00:02]} 87. Kh4 {[%clk 0:00:13]}  Rde6 {[%clk 0:00:02]} 88. Qd4+ {[%clk 0:00:13]}  Kg8 {[%clk 0:00:03]} 89. Qd8+ {[%clk 0:00:13]}  Kh7 {[%clk 0:00:03]} 90. Qd4 {[%clk 0:00:14]}  Rg5 {[%clk 0:00:03]} 91. Qf4 {[%clk 0:00:14]}  Kg7 {[%clk 0:00:03]} 92. Qd4+ {[%clk 0:00:14]}  Kg8 {[%clk 0:00:03]} 93. Qd8+ {[%clk 0:00:14]}  Kh7 {[%clk 0:00:03]} 94. Qd7 {[%clk 0:00:14]}  Rf6 {[%clk 0:00:03]} 95. Qd3+ {[%clk 0:00:14]}  Rfg6 {[%clk 0:00:03]} 96. Kh3 {[%clk 0:00:11]}  Rxg4 {[%clk 0:00:04]} 97. Qd7 {[%clk 0:00:11]}  Rg3+ {[%clk 0:00:03]} 98. Kh2 {[%clk 0:00:11]}  Kg7 {[%clk 0:00:03]} 99. Qd4+ {[%clk 0:00:11]}  Kg8 {[%clk 0:00:03]} 100. Qd8+ {[%clk 0:00:11]}  Kh7 {[%clk 0:00:03]} 101. Qd7 {[%clk 0:00:11]}  Rg7 {[%clk 0:00:04]} 102. Qd6 {[%clk 0:00:10]}  R3g6 {[%clk 0:00:05]} 103. Qd3 {[%clk 0:00:11]}  Rg8 {[%clk 0:00:05]} 104. Qc4 {[%clk 0:00:10]}  Kg7 {[%clk 0:00:04]} 105. Qd4+ {[%clk 0:00:10]}  Kh7 {[%clk 0:00:04]} 106. Qd3 {[%clk 0:00:11]}  Re8 {[%clk 0:00:04]} 107. Qf5 {[%clk 0:00:11]}  Kg7 {[%clk 0:00:04]} 108. Qd3 {[%clk 0:00:11]}  Re5 {[%clk 0:00:03]} 109. Qd4 {[%clk 0:00:11]}  Rg5 {[%clk 0:00:03]} 110. Kh3 {[%clk 0:00:09]}  Kg6 {[%clk 0:00:02]} 111. Qd3+ {[%clk 0:00:10]}  Ref5 {[%clk 0:00:02]} 112. Qd6+ {[%clk 0:00:10]}  Rf6 {[%clk 0:00:02]} 113. Qd3+ {[%clk 0:00:10]}  Kg7 {[%clk 0:00:02]} 114. Qd4 {[%clk 0:00:10]}  Rf5 {[%clk 0:00:02]} 115. Kg2 {[%clk 0:00:08]}  Kg6 {[%clk 0:00:01]} 116. Qd3 {[%clk 0:00:08]}  Kh7 {[%clk 0:00:02]} 117. Kg3 {[%clk 0:00:08]}  Rg6+ {[%clk 0:00:02]} 118. Kh4 {[%clk 0:00:06]}  Rf4+ {[%clk 0:00:02]} 119. Kh3 {[%clk 0:00:07]}  h5 {[%clk 0:00:02]} 120. Qd5 {[%clk 0:00:05]}  Rfg4 {[%clk 0:00:02]} 121. Qxh5+ {[%clk 0:00:05]}  Kg7 {[%clk 0:00:02]} 122. Qxg4 {[%clk 0:00:05]}  Rxg4 {[%clk 0:00:02]} 123. Kxg4 {[%clk 0:00:06]}  Kg6 {[%clk 0:00:03]} 124. Kh3 {[%clk 0:00:05]}  Kh5 {[%clk 0:00:03]} 125. Kg3 {[%clk 0:00:06]}  Kg5 {[%clk 0:00:03]} 126. Kf3 {[%clk 0:00:07]}  Kf5 {[%clk 0:00:04]} 127. Kg3 {[%clk 0:00:07]}  Ke4 {[%clk 0:00:04]} 128. Kg4 {[%clk 0:00:08]}  f5+ {[%clk 0:00:04]} 129. Kg3 {[%clk 0:00:08]}  Ke3 {[%clk 0:00:05]} 130. Kh4 {[%clk 0:00:08]}  f4 {[%clk 0:00:05]} 131. Kg4 {[%clk 0:00:09]}  f3 {[%clk 0:00:06]} 0-1


[Site "https://www.chess.com"]

[Event "Titled Tuesday Blitz March 14 Early 2023"]
[White "Gontcharov, Vladislav"]
[Black "Santos Ruiz, Miguel"]
[WhiteFideId "4123492"]
[BlackFideId "22291482"]
[WhiteElo "2470"]
[BlackElo "2504"]
[Result "1-0"]
[Round "06"]
[TimeControl "180+2"]
[Date "2023.03.14"]
[WhiteClock "0:00:48"]
[BlackClock "0:00:10"]

1. e4 {[%clk 0:02:44]}  c6 {[%clk 0:02:59]} 2. d4 {[%clk 0:02:43]}  d5 {[%clk 0:03:00]} 3. Nc3 {[%clk 0:02:41]}  dxe4 {[%clk 0:03:00]} 4. Nxe4 {[%clk 0:02:42]}  Nf6 {[%clk 0:03:01]} 5. Nxf6+ {[%clk 0:02:42]}  exf6 {[%clk 0:03:02]} 6. c3 {[%clk 0:02:42]}  Bd6 {[%clk 0:03:02]} 7. Bd3 {[%clk 0:02:43]}  O-O {[%clk 0:03:03]} 8. Ne2 {[%clk 0:02:43]}  Re8 {[%clk 0:03:03]} 9. O-O {[%clk 0:02:43]}  Nd7 {[%clk 0:03:04]} 10. Bf4 {[%clk 0:02:42]}  Nf8 {[%clk 0:03:05]} 11. Bxd6 {[%clk 0:02:42]}  Qxd6 {[%clk 0:03:06]} 12. Qd2 {[%clk 0:02:41]}  Ng6 {[%clk 0:03:04]} 13. Ng3 {[%clk 0:02:38]}  Be6 {[%clk 0:03:03]} 14. Rfe1 {[%clk 0:02:37]}  Qd7 {[%clk 0:02:59]} 15. f4 {[%clk 0:02:25]}  Nh4 {[%clk 0:02:57]} 16. Re3 {[%clk 0:02:17]}  Bd5 {[%clk 0:02:49]} 17. Bf1 {[%clk 0:02:03]}  Rxe3 {[%clk 0:02:42]} 18. Qxe3 {[%clk 0:02:04]}  Re8 {[%clk 0:02:42]} 19. Qf2 {[%clk 0:02:03]}  f5 {[%clk 0:02:19]} 20. c4 {[%clk 0:02:01]}  Be6 {[%clk 0:02:19]} 21. Rd1 {[%clk 0:02:00]}  Rd8 {[%clk 0:02:15]} 22. d5 {[%clk 0:01:43]}  cxd5 {[%clk 0:02:12]} 23. cxd5 {[%clk 0:01:43]}  Bxd5 {[%clk 0:02:11]} 24. Bc4 {[%clk 0:01:30]}  Bxc4 {[%clk 0:00:21]} 25. Rxd7 {[%clk 0:01:26]}  Rxd7 {[%clk 0:00:22]} 26. Qc2 {[%clk 0:01:02]}  b5 {[%clk 0:00:11]} 27. b3 {[%clk 0:00:58]}  g5 {[%clk 0:00:09]} 28. bxc4 {[%clk 0:00:57]}  gxf4 {[%clk 0:00:10]} 29. Nh5 {[%clk 0:00:55]}  Re7 {[%clk 0:00:09]} 30. cxb5 {[%clk 0:00:49]}  f3 {[%clk 0:00:10]} 31. Qc8+ {[%clk 0:00:48]} 1-0


[Site "https://www.chess.com"]

[Event "Titled Tuesday Blitz March 14 Early 2023"]
[White "Sokac, Marko"]
[Black "Khoroshev, Nikita"]
[WhiteFideId "14531356"]
[BlackFideId "14200287"]
[WhiteElo "2355"]
[BlackElo "2354"]
[Result "1-0"]
[Round "06"]
[TimeControl "180+2"]
[Date "2023.03.14"]
[WhiteClock "0:00:22"]
[BlackClock "0:00:13"]

1. e4 {[%clk 0:03:00]}  c5 {[%clk 0:02:59]} 2. a3 {[%clk 0:03:00]}  e6 {[%clk 0:02:55]} 3. b4 {[%clk 0:03:00]}  cxb4 {[%clk 0:02:55]} 4. axb4 {[%clk 0:03:01]}  Bxb4 {[%clk 0:02:55]} 5. c3 {[%clk 0:03:02]}  Be7 {[%clk 0:02:55]} 6. d4 {[%clk 0:03:03]}  d5 {[%clk 0:02:54]} 7. e5 {[%clk 0:03:03]}  f5 {[%clk 0:02:52]} 8. Nf3 {[%clk 0:02:58]}  Nh6 {[%clk 0:02:47]} 9. h4 {[%clk 0:02:52]}  Nf7 {[%clk 0:02:46]} 10. Ng5 {[%clk 0:02:40]}  g6 {[%clk 0:02:39]} 11. Bb5+ {[%clk 0:02:32]}  Nc6 {[%clk 0:02:38]} 12. f4 {[%clk 0:02:14]}  h6 {[%clk 0:02:34]} 13. Nf3 {[%clk 0:02:14]}  a6 {[%clk 0:02:31]} 14. Be2 {[%clk 0:01:54]}  b5 {[%clk 0:02:27]} 15. Bxb5 {[%clk 0:01:53]}  Qb6 {[%clk 0:02:22]} 16. Be2 {[%clk 0:01:49]}  a5 {[%clk 0:02:21]} 17. Ba3 {[%clk 0:01:43]}  Ba6 {[%clk 0:02:20]} 18. Bxe7 {[%clk 0:01:30]}  Nxe7 {[%clk 0:02:21]} 19. Nbd2 {[%clk 0:01:27]}  Bxe2 {[%clk 0:02:20]} 20. Qxe2 {[%clk 0:01:27]}  O-O {[%clk 0:02:15]} 21. h5 {[%clk 0:01:27]}  g5 {[%clk 0:02:13]} 22. fxg5 {[%clk 0:01:27]}  hxg5 {[%clk 0:02:14]} 23. h6 {[%clk 0:01:16]}  g4 {[%clk 0:02:12]} 24. h7+ {[%clk 0:01:07]}  Kh8 {[%clk 0:02:12]} 25. Nh4 {[%clk 0:00:59]}  Qb2 {[%clk 0:02:11]} 26. O-O {[%clk 0:00:54]}  Qxc3 {[%clk 0:02:10]} 27. Qf2 {[%clk 0:00:55]}  Rac8 {[%clk 0:02:00]} 28. Rab1 {[%clk 0:00:35]}  Rc7 {[%clk 0:01:52]} 29. Rb6 {[%clk 0:00:32]}  Rc6 {[%clk 0:01:00]} 30. Rb7 {[%clk 0:00:32]}  Rc7 {[%clk 0:00:59]} 31. Rb6 {[%clk 0:00:32]}  Nd8 {[%clk 0:00:51]} 32. Qf4 {[%clk 0:00:32]}  Rf7 {[%clk 0:00:38]} 33. Nb3 {[%clk 0:00:29]}  g3 {[%clk 0:00:27]} 34. Rc1 {[%clk 0:00:27]}  Qxc1+ {[%clk 0:00:11]} 35. Nxc1 {[%clk 0:00:28]}  Nec6 {[%clk 0:00:11]} 36. Qh6 {[%clk 0:00:23]}  Rg7 {[%clk 0:00:09]} 37. Ng6+ {[%clk 0:00:20]}  Rxg6 {[%clk 0:00:09]} 38. Qxg6 {[%clk 0:00:21]}  Rxh7 {[%clk 0:00:10]} 39. Rxc6 {[%clk 0:00:19]}  Nxc6 {[%clk 0:00:10]} 40. Qe8+ {[%clk 0:00:20]}  Kg7 {[%clk 0:00:10]} 41. Qxc6 {[%clk 0:00:20]}  Rh4 {[%clk 0:00:11]} 42. Ne2 {[%clk 0:00:20]}  Re4 {[%clk 0:00:11]} 43. Nxg3 {[%clk 0:00:21]}  Rxd4 {[%clk 0:00:11]} 44. Qxe6 {[%clk 0:00:21]}  f4 {[%clk 0:00:12]} 45. Qf6+ {[%clk 0:00:21]}  Kg8 {[%clk 0:00:12]} 46. Nf5 {[%clk 0:00:22]}  Rd1+ {[%clk 0:00:11]} 47. Kf2 {[%clk 0:00:22]}  Rd2+ {[%clk 0:00:12]} 48. Ke1 {[%clk 0:00:22]}  a4 {[%clk 0:00:13]} 49. Qg7# {[%clk 0:00:22]} 1-0


[Site "https://www.chess.com"]

[Event "Titled Tuesday Blitz March 14 Early 2023"]
[White "Yurovskykh, Oleksandr"]
[Black "Skvortsov, Andrei"]
[WhiteFideId "14134020"]
[BlackFideId "24108600"]
[WhiteElo "2268"]
[BlackElo "2259"]
[Result "1/2-1/2"]
[Round "06"]
[TimeControl "180+2"]
[Date "2023.03.14"]
[WhiteClock "0:00:03"]
[BlackClock "0:00:09"]

1. d4 {[%clk 0:03:00]}  d5 {[%clk 0:02:57]} 2. Bf4 {[%clk 0:02:59]}  h5 {[%clk 0:02:52]} 3. Nf3 {[%clk 0:02:58]}  Nf6 {[%clk 0:02:45]} 4. e3 {[%clk 0:02:58]}  g6 {[%clk 0:02:45]} 5. c4 {[%clk 0:02:58]}  c6 {[%clk 0:02:45]} 6. Nc3 {[%clk 0:02:57]}  Bg7 {[%clk 0:02:44]} 7. h3 {[%clk 0:02:41]}  a6 {[%clk 0:02:41]} 8. c5 {[%clk 0:02:40]}  Nbd7 {[%clk 0:02:41]} 9. Be2 {[%clk 0:02:38]}  Nh7 {[%clk 0:02:27]} 10. O-O {[%clk 0:02:35]}  f6 {[%clk 0:02:25]} 11. Bh2 {[%clk 0:02:29]}  e5 {[%clk 0:02:24]} 12. e4 {[%clk 0:02:26]}  exd4 {[%clk 0:02:22]} 13. Qxd4 {[%clk 0:02:10]}  O-O {[%clk 0:02:18]} 14. exd5 {[%clk 0:02:09]}  f5 {[%clk 0:02:16]} 15. Qc4 {[%clk 0:02:02]}  Kh8 {[%clk 0:02:15]} 16. Rad1 {[%clk 0:01:56]}  Qe8 {[%clk 0:02:03]} 17. Rfe1 {[%clk 0:01:55]}  Ndf6 {[%clk 0:01:55]} 18. Bf1 {[%clk 0:01:49]}  cxd5 {[%clk 0:01:52]} 19. Rxe8 {[%clk 0:01:44]}  dxc4 {[%clk 0:01:51]} 20. Rxf8+ {[%clk 0:01:44]}  Nxf8 {[%clk 0:01:43]} 21. Bxc4 {[%clk 0:01:44]}  Be6 {[%clk 0:01:43]} 22. Ne5 {[%clk 0:01:29]}  Bxc4 {[%clk 0:01:38]} 23. Nxc4 {[%clk 0:01:30]}  Rc8 {[%clk 0:01:38]} 24. b4 {[%clk 0:01:30]}  Ne8 {[%clk 0:01:25]} 25. Nd5 {[%clk 0:01:23]}  Rd8 {[%clk 0:01:25]} 26. Ncb6 {[%clk 0:01:22]}  Nf6 {[%clk 0:01:16]} 27. Be5 {[%clk 0:01:09]}  Ne4 {[%clk 0:01:13]} 28. Bxg7+ {[%clk 0:01:10]}  Kxg7 {[%clk 0:01:13]} 29. f3 {[%clk 0:01:07]}  Ng3 {[%clk 0:01:03]} 30. Kf2 {[%clk 0:01:05]}  h4 {[%clk 0:00:57]} 31. Re1 {[%clk 0:01:05]}  g5 {[%clk 0:00:51]} 32. Re7+ {[%clk 0:01:05]}  Kg6 {[%clk 0:00:51]} 33. Rxb7 {[%clk 0:01:05]}  Re8 {[%clk 0:00:51]} 34. Re7 {[%clk 0:01:04]}  Rxe7 {[%clk 0:00:48]} 35. Nxe7+ {[%clk 0:01:05]}  Kf6 {[%clk 0:00:48]} 36. Ned5+ {[%clk 0:00:58]}  Ke5 {[%clk 0:00:47]} 37. c6 {[%clk 0:00:58]}  Ne6 {[%clk 0:00:47]} 38. c7 {[%clk 0:00:58]}  Nxc7 {[%clk 0:00:47]} 39. Nxc7 {[%clk 0:00:59]}  Nh1+ {[%clk 0:00:45]} 40. Kg1 {[%clk 0:00:58]}  Ng3 {[%clk 0:00:45]} 41. Nxa6 {[%clk 0:00:59]}  Ne2+ {[%clk 0:00:46]} 42. Kf2 {[%clk 0:00:59]}  Nc3 {[%clk 0:00:46]} 43. a4 {[%clk 0:00:54]}  Kd4 {[%clk 0:00:46]} 44. b5 {[%clk 0:00:53]}  Nd1+ {[%clk 0:00:33]} 45. Ke2 {[%clk 0:00:53]}  Ne3 {[%clk 0:00:33]} 46. Kf2 {[%clk 0:00:53]}  Nd1+ {[%clk 0:00:33]} 47. Kg1 {[%clk 0:00:53]}  Nc3 {[%clk 0:00:33]} 48. Nc7 {[%clk 0:00:50]}  Kc5 {[%clk 0:00:32]} 49. Ncd5 {[%clk 0:00:47]}  Ne2+ {[%clk 0:00:30]} 50. Kf2 {[%clk 0:00:47]}  Nd4 {[%clk 0:00:29]} 51. Ke3 {[%clk 0:00:31]}  Nc2+ {[%clk 0:00:28]} 52. Kd2 {[%clk 0:00:30]}  Nd4 {[%clk 0:00:28]} 53. Kd3 {[%clk 0:00:30]}  Ne6 {[%clk 0:00:27]} 54. Kc3 {[%clk 0:00:24]}  Nd4 {[%clk 0:00:22]} 55. Kd3 {[%clk 0:00:20]}  Ne6 {[%clk 0:00:21]} 56. f4 {[%clk 0:00:20]}  g4 {[%clk 0:00:21]} 57. hxg4 {[%clk 0:00:20]}  fxg4 {[%clk 0:00:19]} 58. f5 {[%clk 0:00:15]}  h3 {[%clk 0:00:12]} 59. gxh3 {[%clk 0:00:13]}  gxh3 {[%clk 0:00:11]} 60. fxe6 {[%clk 0:00:10]}  h2 {[%clk 0:00:12]} 61. e7 {[%clk 0:00:05]}  h1=Q {[%clk 0:00:12]} 62. Nd7+ {[%clk 0:00:05]}  Kxd5 {[%clk 0:00:07]} 63. e8=Q {[%clk 0:00:06]}  Qd1+ {[%clk 0:00:07]} 64. Kc3 {[%clk 0:00:06]}  Qc1+ {[%clk 0:00:06]} 65. Kb3 {[%clk 0:00:04]}  Qb1+ {[%clk 0:00:06]} 66. Kc3 {[%clk 0:00:05]}  Qc1+ {[%clk 0:00:07]} 67. Kb4 {[%clk 0:00:04]}  Qd2+ {[%clk 0:00:07]} 68. Kb3 {[%clk 0:00:04]}  Qd3+ {[%clk 0:00:07]} 69. Kb2 {[%clk 0:00:04]}  Qd2+ {[%clk 0:00:08]} 70. Kb3 {[%clk 0:00:05]}  Qd3+ {[%clk 0:00:08]} 71. Kb2 {[%clk 0:00:04]}  Qd2+ {[%clk 0:00:09]} 72. Kb3 {[%clk 0:00:03]} 1/2-1/2


[Site "https://www.chess.com"]

[Event "Titled Tuesday Blitz March 14 Early 2023"]
[White "Jaskolka, Tomasz"]
[Black "Zamorano, Jorge"]
[WhiteFideId "1170791"]
[BlackFideId "173770"]
[WhiteElo "2155"]
[BlackElo "2331"]
[Result "0-1"]
[Round "06"]
[TimeControl "180+2"]
[Date "2023.03.14"]
[WhiteClock "0:00:14"]
[BlackClock "0:00:33"]

1. e4 {[%clk 0:02:59]}  c5 {[%clk 0:02:58]} 2. Nf3 {[%clk 0:02:59]}  d6 {[%clk 0:02:59]} 3. b4 {[%clk 0:02:59]}  b6 {[%clk 0:02:51]} 4. c3 {[%clk 0:02:55]}  Bb7 {[%clk 0:02:49]} 5. bxc5 {[%clk 0:02:47]}  bxc5 {[%clk 0:02:47]} 6. e5 {[%clk 0:02:47]}  e6 {[%clk 0:02:40]} 7. exd6 {[%clk 0:02:46]}  Bxd6 {[%clk 0:02:41]} 8. Bb2 {[%clk 0:02:40]}  Nf6 {[%clk 0:02:40]} 9. d4 {[%clk 0:02:37]}  O-O {[%clk 0:02:38]} 10. Bd3 {[%clk 0:02:30]}  cxd4 {[%clk 0:02:31]} 11. Nxd4 {[%clk 0:02:24]}  Bxg2 {[%clk 0:01:59]} 12. Rg1 {[%clk 0:02:25]}  Bb7 {[%clk 0:01:58]} 13. Nd2 {[%clk 0:02:22]}  Nc6 {[%clk 0:01:52]} 14. Nc4 {[%clk 0:02:17]}  Nxd4 {[%clk 0:01:46]} 15. cxd4 {[%clk 0:02:17]}  Bxh2 {[%clk 0:01:43]} 16. Rg5 {[%clk 0:01:57]}  h6 {[%clk 0:01:42]} 17. Rb5 {[%clk 0:01:37]}  Ba6 {[%clk 0:01:24]} 18. Rc5 {[%clk 0:01:36]}  Bd6 {[%clk 0:01:07]} 19. Nxd6 {[%clk 0:01:14]}  Qxd6 {[%clk 0:01:08]} 20. Bc2 {[%clk 0:01:04]}  Rab8 {[%clk 0:00:59]} 21. Ba3 {[%clk 0:00:53]}  Rfd8 {[%clk 0:00:50]} 22. Qf3 {[%clk 0:00:33]}  Qxd4 {[%clk 0:00:48]} 23. Rd1 {[%clk 0:00:33]}  Qh4 {[%clk 0:00:41]} 24. Ra5 {[%clk 0:00:19]}  Rxd1+ {[%clk 0:00:39]} 25. Kxd1 {[%clk 0:00:17]}  Qd4+ {[%clk 0:00:36]} 26. Kc1 {[%clk 0:00:15]}  Qa1+ {[%clk 0:00:35]} 27. Kd2 {[%clk 0:00:15]}  Rd8+ {[%clk 0:00:34]} 28. Ke3 {[%clk 0:00:14]}  Qd4# {[%clk 0:00:33]} 0-1


[Site "https://www.chess.com"]

[Event "Titled Tuesday Blitz March 14 Early 2023"]
[White "Ginzburg, Yakov"]
[Black "Dehtiarov, Roman"]
[WhiteFideId "4157176"]
[BlackFideId "14186640"]
[WhiteElo "2305"]
[BlackElo "2162"]
[Result "0-1"]
[Round "06"]
[TimeControl "180+2"]
[Date "2023.03.14"]
[WhiteClock "0:00:07"]
[BlackClock "0:00:17"]

1. e4 {[%clk 0:02:59]}  e5 {[%clk 0:02:59]} 2. Nf3 {[%clk 0:02:59]}  Nc6 {[%clk 0:03:00]} 3. Bb5 {[%clk 0:02:59]}  a6 {[%clk 0:03:00]} 4. Bxc6 {[%clk 0:03:00]}  dxc6 {[%clk 0:03:01]} 5. O-O {[%clk 0:03:01]}  f6 {[%clk 0:02:59]} 6. d4 {[%clk 0:03:01]}  exd4 {[%clk 0:03:00]} 7. Nxd4 {[%clk 0:03:02]}  Bd6 {[%clk 0:03:00]} 8. Qh5+ {[%clk 0:02:50]}  g6 {[%clk 0:02:55]} 9. Qh4 {[%clk 0:02:50]}  Qe7 {[%clk 0:02:38]} 10. Nc3 {[%clk 0:02:23]}  Bd7 {[%clk 0:02:36]} 11. e5 {[%clk 0:01:55]}  fxe5 {[%clk 0:02:32]} 12. Bg5 {[%clk 0:01:54]}  Qf7 {[%clk 0:02:28]} 13. Rfe1 {[%clk 0:01:42]}  Ne7 {[%clk 0:02:19]} 14. Ne4 {[%clk 0:01:36]}  h6 {[%clk 0:01:10]} 15. Rad1 {[%clk 0:01:06]}  O-O-O {[%clk 0:00:26]} 16. Nxd6+ {[%clk 0:01:04]}  cxd6 {[%clk 0:00:26]} 17. Bxe7 {[%clk 0:01:04]}  g5 {[%clk 0:00:27]} 18. Qe4 {[%clk 0:00:14]}  Qxe7 {[%clk 0:00:24]} 19. Nf5 {[%clk 0:00:09]}  Bxf5 {[%clk 0:00:24]} 20. Qxf5+ {[%clk 0:00:10]}  Kb8 {[%clk 0:00:25]} 21. c4 {[%clk 0:00:10]}  Rhf8 {[%clk 0:00:23]} 22. Qg6 {[%clk 0:00:11]}  Rf6 {[%clk 0:00:23]} 23. Qe4 {[%clk 0:00:09]}  Rdf8 {[%clk 0:00:22]} 24. f3 {[%clk 0:00:09]}  Rf4 {[%clk 0:00:21]} 25. Qe2 {[%clk 0:00:09]}  g4 {[%clk 0:00:21]} 26. c5 {[%clk 0:00:06]}  gxf3 {[%clk 0:00:20]} 27. gxf3 {[%clk 0:00:04]}  dxc5 {[%clk 0:00:15]} 28. Qxe5+ {[%clk 0:00:04]}  Qxe5 {[%clk 0:00:16]} 29. Rxe5 {[%clk 0:00:04]}  Rxf3 {[%clk 0:00:17]} 30. Rxc5 {[%clk 0:00:04]}  Rg8+ {[%clk 0:00:16]} 31. Kh1 {[%clk 0:00:05]}  Rf2 {[%clk 0:00:17]} 32. Rg1 {[%clk 0:00:01]}  Rxg1+ {[%clk 0:00:16]} 33. Kxg1 {[%clk 0:00:02]}  Rxb2 {[%clk 0:00:17]} 34. Rh5 {[%clk 0:00:03]}  Rxa2 {[%clk 0:00:17]} 35. Rxh6 {[%clk 0:00:04]}  Rb2 {[%clk 0:00:16]} 36. h4 {[%clk 0:00:04]}  a5 {[%clk 0:00:17]} 37. h5 {[%clk 0:00:05]}  a4 {[%clk 0:00:17]} 38. Rh8+ {[%clk 0:00:04]}  Ka7 {[%clk 0:00:17]} 39. h6 {[%clk 0:00:05]}  Rb5 {[%clk 0:00:13]} 40. Rg8 {[%clk 0:00:02]}  Rh5 {[%clk 0:00:13]} 41. Rg4 {[%clk 0:00:02]}  Rxh6 {[%clk 0:00:12]} 42. Rxa4+ {[%clk 0:00:02]}  Kb6 {[%clk 0:00:13]} 43. Ra1 {[%clk 0:00:03]}  Kc7 {[%clk 0:00:13]} 44. Kf2 {[%clk 0:00:03]}  b5 {[%clk 0:00:14]} 45. Ke3 {[%clk 0:00:03]}  Kb6 {[%clk 0:00:14]} 46. Kd4 {[%clk 0:00:04]}  Rh4+ {[%clk 0:00:15]} 47. Kc3 {[%clk 0:00:05]}  b4+ {[%clk 0:00:15]} 48. Kb3 {[%clk 0:00:05]}  Kb5 {[%clk 0:00:16]} 49. Rg1 {[%clk 0:00:04]}  Rh3+ {[%clk 0:00:16]} 50. Kb2 {[%clk 0:00:05]}  c5 {[%clk 0:00:17]} 51. Rg8 {[%clk 0:00:05]}  Rh2+ {[%clk 0:00:17]} 52. Kb1 {[%clk 0:00:05]}  Ka4 {[%clk 0:00:17]} 53. Rg3 {[%clk 0:00:05]}  c4 {[%clk 0:00:17]} 54. Rg8 {[%clk 0:00:05]}  Kb3 {[%clk 0:00:17]} 55. Rg1 {[%clk 0:00:05]}  Ka3 {[%clk 0:00:15]} 56. Rg3+ {[%clk 0:00:05]}  b3 {[%clk 0:00:15]} 57. Rg1 {[%clk 0:00:06]}  c3 {[%clk 0:00:15]} 58. Ka1 {[%clk 0:00:06]}  Ra2+ {[%clk 0:00:16]} 59. Kb1 {[%clk 0:00:06]}  c2+ {[%clk 0:00:16]} 60. Kc1 {[%clk 0:00:07]}  Ra1+ {[%clk 0:00:17]} 0-1


[Site "https://www.chess.com"]